bitfinex-derivatives/quotes_ETHF0:USTF0_20240818
["timestamp","ask_amount","ask_price","bid_price","bid_amount"]
[1724024710767,5.06371698,2626.5,2626.2,1.90361]
[1724024710968,6.96714698,2626.5,2626.2,1.90361]
[1724024711269,0.97871698,2626.4,2625.9,0.6012]
[1724024711470,0.97871698,2626.4,2626.2,1.90361]
[1724024711865,6.96714698,2626.5,2626.2,1.90361]
[1724024712062,0.97871698,2626.4,2626.2,1.90361]
[1724024712274,0.97871698,2626.4,2626.2,1.9036]
[1724024712468,0.97871698,2626.4,2626.2,1.90359]
[1724024712674,0.97871698,2626.4,2626.1,1.90365]
[1724024712872,0.97871698,2626.4,2625.9,0.6012]
[1724024712873,0.97871698,2626.4,2626.2,1.90359]
[1724024713079,0.97871698,2626.5,2626.2,3.2078]
[1724024713260,3.2078,2626.6,2626.5,1.9034]
[1724024713660,0.97871698,2626.8,2626.6,1.90326]
[1724024713869,1.90319,2626.8,2626.5,42.70336]
[1724024714077,2.88186698,2626.9,2626.6,1.90332]
[1724024714271,2.88186698,2626.9,2626.5,40.8]
[1724024714272,1.90318,2626.8,2626.5,42.70335]
[1724024715569,1.90326,2626.7,2626.5,42.70335]
[1724024715882,0.97871698,2626.9,2626.5,42.70335]
[1724024716174,1.90326,2626.7,2626.5,42.70335]
[1724024716676,1.90322,2626.8,2626.5,46.51055]
[1724024716877,1.90322,2626.8,2626.5,40.8]
[1724024717069,0.97871698,2626.9,2626.5,40.8]
[1724024717375,2.96810123,2627.0,2626.5,47.815]
[1724024717575,0.98791886,2627.3,2626.6,7.82392862]
[1724024717879,0.00920188,2627.3,2627.2,1.90289]
[1724024718269,0.00920188,2627.3,2627.2,5.70929]
[1724024718471,0.00920188,2627.3,2627.2,8.91709]
[1724024718676,0.00920188,2627.3,2627.2,17.98439698]
[1724024718871,1.1539,2627.8,2627.6,1.90256]
[1724024719178,1.56571698,2628.3,2627.9,1.90232]
[1724024719476,1.56571698,2628.3,2627.7,40.8]
[1724024719477,1.90245,2627.8,2627.7,40.8]
[1724024719872,0.00270385,2627.8,2627.7,40.80391488]
[1724024720180,1.90515385,2627.8,2627.7,40.80391488]
[1724024720682,0.00270385,2627.8,2627.7,40.80391488]
[1724024721576,0.00270385,2627.8,2627.7,42.70644488]
[1724024722473,0.00270385,2627.8,2627.7,46.51204488]
[1724024722674,0.00270385,2627.8,2627.7,44.60951488]
[1724024723389,0.00270385,2627.8,2627.7,46.51204488]
[1724024723972,0.00270385,2627.8,2627.7,46.63914488]
[1724024724371,0.00570559,2628.0,2627.9,1.90238]
[1724024724778,0.00570559,2628.0,2627.9,14.67545929]
[1724024725380,0.01054526,2628.0,2627.9,14.67545929]
[1724024726878,0.4448,2628.6,2628.5,1.90195]
[1724024727382,0.4448,2628.6,2628.2,3.2078]
[1724024727383,5.10943,2629.0,2628.7,1.90178]
[1724024727572,5.55753,2629.0,2628.7,1.90178]
[1724024727780,5.56188204,2629.0,2628.7,1.90178]
[1724024727978,3.66025204,2629.0,2628.3,0.5548]
[1724024728281,3.66025204,2629.0,2628.8,1.90169]
[1724024728777,3.66025204,2629.0,2628.9,40.8]
[1724024729173,5.56184204,2629.0,2628.9,40.8]
[1724024729367,3.66025204,2629.0,2628.9,40.8]
[1724024730579,5.56184204,2629.0,2628.9,40.8]
[1724024731671,3.66025204,2629.0,2628.9,40.8]
[1724024731873,5.56184204,2629.0,2628.9,40.8]
[1724024732481,1.90174,2628.8,2628.3,0.4277]
[1724024732869,0.4327,2628.7,2628.3,0.4277]
[1724024733076,1.90229,2628.1,2627.7,0.00391488]
[1724024733279,1.90212,2628.3,2627.7,0.00391488]
[1724024733482,3.2078,2628.5,2627.8,47.21184355]
[1724024733785,3.2078,2628.5,2627.9,0.4255]
[1724024733983,1.90213,2628.3,2627.9,0.4255]
[1724024734284,1.90213,2628.3,2628.0,1.90228]
[1724024734473,2.33733,2628.4,2628.1,1.90222]
[1724024734679,0.4353,2628.4,2628.1,1.90222]
[1724024734879,2.33733,2628.4,2628.1,1.90222]
[1724024735075,2.33733,2628.4,2628.0,1.90227]
[1724024735277,2.33733,2628.4,2627.9,0.4255]
[1724024735278,0.4353,2628.4,2627.9,0.4255]
[1724024735575,1.90229,2628.1,2627.8,40.8]
[1724024735782,2.34734,2628.0,2627.8,40.8]
[1724024736081,1.90238,2627.9,2627.8,40.8]
[1724024736286,2.76278,2627.9,2627.8,40.8]
[1724024736488,1.90246,2627.8,2627.7,0.00391488]
[1724024737580,5.70806,2627.8,2627.7,0.00391488]
[1724024737885,1.90246,2627.8,2627.7,0.00391488]
[1724024738075,2.76282,2627.9,2627.7,0.00391488]
[1724024738679,1.90246,2627.8,2627.7,0.00391488]
[1724024739078,2.76283,2627.9,2627.7,0.00391488]
[1724024739285,0.8604,2627.9,2627.7,0.00391488]
[1724024739588,2.76283,2627.9,2627.7,0.00391488]
[1724024739981,2.76284,2627.9,2627.7,0.00391488]
[1724024740290,1.90246,2627.8,2627.7,0.00391488]
[1724024740484,2.76283,2627.9,2627.7,0.00391488]
[1724024740690,1.90246,2627.8,2627.7,0.00391488]
[1724024741377,2.76283,2627.9,2627.7,0.00391488]
[1724024741789,1.90246,2627.8,2627.7,0.00391488]
[1724024743090,0.4242,2627.9,2627.8,1.90246]
[1724024743276,0.445,2628.0,2627.9,1.90238]
[1724024744187,1.90225,2628.1,2627.8,0.4242]
[1724024744188,0.4224,2628.2,2627.8,0.4242]
[1724024744390,4.085,2628.3,2628.2,1.90217]
[1724024745583,0.4274,2628.4,2628.3,1.90209]
[1724024746287,0.4274,2628.4,2628.2,1.90212]
[1724024746682,0.4274,2628.4,2628.3,1.90209]
[1724024747688,0.4224,2628.6,2628.4,1.90197]
[1724024747882,0.4224,2628.6,2628.0,2.3]
[1724024748089,0.4224,2628.6,2628.4,1.90196]
[1724024748692,2.32428,2628.6,2628.3,1.90204]
[1724024748887,0.4224,2628.6,2628.4,1.90202]
[1724024749088,0.4224,2628.6,2628.0,2.3]
[1724024749089,1.90198,2628.5,2628.0,2.3]
[1724024749288,1.90198,2628.5,2628.2,1.90213]
[1724024749489,1.90198,2628.5,2628.2,5.70693]
[1724024749689,2.32431,2628.6,2628.3,5.99158282]
[1724024749986,0.4224,2628.6,2628.4,40.8]
[1724024750194,2.32434,2628.6,2628.4,40.8]
[1724024750789,0.4224,2628.6,2628.5,1.90195]
[1724024751390,0.4224,2628.6,2628.5,0.448]
[1724024751699,0.4224,2628.6,2628.5,2.34995]
[1724024751894,0.4224,2628.6,2627.7,0.00391488]
[1724024751895,11.5264,2628.6,2627.7,0.00391488]
[1724024752107,1.90243,2627.9,2627.7,0.00391488]
[1724024752391,3.2078,2628.2,2627.7,40.80391488]
[1724024752392,0.4387,2627.8,2627.7,40.80391488]
[1724024752996,0.4387,2627.8,2627.7,42.70644488]
[1724024753482,0.8741,2628.1,2627.8,1.90239]
[1724024753483,0.4549,2628.1,2627.8,1.90239]
[1724024753793,0.4549,2628.1,2627.7,40.80391488]
[1724024754288,0.4549,2628.1,2627.7,42.70638488]
[1724024754595,0.4549,2628.1,2627.8,1.90243]
[1724024755496,0.4549,2628.1,2627.8,1.90245]
[1724024755798,0.4549,2628.1,2627.7,42.70638488]
[1724024756095,2.35716,2628.1,2627.8,4.28803885]
[1724024756295,1.90238,2627.9,2627.8,4.28803885]
[1724024756488,1.90246,2627.8,2627.7,40.80391488]
[1724024756889,1.90246,2627.8,2627.7,44.60951488]
[1724024757083,1.90246,2627.8,2627.7,40.80391488]
[1724024757290,5.11026,2627.8,2627.7,40.80391488]
[1724024758490,1.90246,2627.8,2627.7,40.80391488]
[1724024759098,1.90253,2627.7,2627.5,0.00570559]
[1724024759290,1.9026,2627.6,2627.5,0.00570559]
[1724024759489,4.7193,2627.6,2627.5,0.00570559]
[1724024760000,5.69801698,2627.6,2627.5,0.00570559]
[1724024760299,9.50361698,2627.6,2627.5,0.00881735]
[1724024760591,7.60101698,2627.6,2627.5,0.00881735]
[1724024760795,2.8167,2627.6,2627.5,0.00881735]
[1724024760995,6.6223,2627.6,2627.5,0.00881735]
[1724024761198,7.60101698,2627.6,2627.5,0.00881735]
[1724024761497,2.88110698,2627.9,2627.6,1.90257]
[1724024761699,3.30030698,2627.9,2627.5,0.00881735]
[1724024762002,3.30034698,2627.9,2627.5,1.91144735]
[1724024762300,3.30030698,2627.9,2627.6,2.36507]
[1724024763601,3.30030698,2627.9,2627.6,2.36506]
[1724024763901,0.4192,2627.9,2627.6,2.36506]
[1724024764099,1.39791698,2627.9,2627.6,2.36506]
[1724024764300,3.30034698,2627.9,2627.6,0.4625]
[1724024764497,1.9026,2627.6,2627.5,0.00881735]
[1724024764703,5.27368425,2627.6,2627.5,0.00881735]
[1724024764996,9.57131847,2627.6,2627.5,0.00881735]
[1724024765304,9.57131847,2627.6,2626.5,3.3339]
[1724024765305,1.90329,2626.7,2626.5,3.2078]
[1724024765489,1.90333,2626.6,2626.3,1.90351]
[1724024765695,1.90329,2626.7,2626.4,42.70346]
[1724024765894,0.97923855,2626.8,2626.4,40.8]
[1724024765895,1.90334,2626.6,2626.4,40.8]
[1724024766303,0.00316363,2626.6,2626.4,42.70828401]
[1724024766490,0.00316363,2626.6,2626.4,42.70825401]
[1724024767600,0.00316363,2626.6,2626.5,1.9034]
[1724024767801,0.00316363,2626.6,2626.4,42.70828401]
[1724024768201,0.00316363,2626.6,2626.4,42.70824401]
[1724024768403,0.00316363,2626.6,2626.5,5.1112]
[1724024768704,0.00316363,2626.6,2626.5,10.08298155]
[1724024769506,0.00316363,2626.6,2626.5,5.7106]
[1724024769894,0.00316363,2626.6,2626.5,3.8072]
[1724024770089,0.00316363,2626.6,2626.4,42.70824401]
[1724024770491,0.00316363,2626.6,2626.5,6.07641737]
[1724024770690,0.00316363,2626.6,2626.5,5.7106]
[1724024770891,0.00316363,2626.6,2626.5,15.948]
[1724024771104,0.00570559,2626.8,2626.7,1.90325]
[1724024771295,0.00570559,2626.8,2626.7,40.8]
[1724024771296,3.81290559,2626.8,2626.7,40.8]
[1724024771499,5.71608559,2626.8,2626.7,40.8]
[1724024772007,5.72060023,2626.8,2626.7,40.8]
[1724024772314,1.9034,2626.5,2626.4,0.00481401]
[1724024772495,3.2078,2626.6,2626.4,0.00481401]
[1724024772695,3.2078,2626.6,2626.5,40.8]
[1724024773304,7.015,2626.6,2626.4,0.00481401]
[1724024773605,3.2078,2626.6,2626.4,0.00481401]
[1724024774021,5.11117,2626.6,2626.4,0.00481401]
[1724024774200,1.9034,2626.5,2626.4,0.00481401]
[1724024774508,3.2078,2626.6,2626.4,0.00481401]
[1724024774509,5.11116,2626.6,2626.4,0.00481401]
[1724024774703,3.2078,2626.6,2626.4,0.00481401]
[1724024775008,0.01022023,2626.8,2626.7,1.90325]
[1724024775202,0.01022023,2626.8,2626.7,5.71045]
[1724024775398,0.01022023,2626.8,2626.7,9.69182934]
[1724024775604,0.01022023,2626.8,2626.7,50.49182934]
[1724024777701,0.01022023,2626.8,2626.7,48.58857934]
[1724024778702,0.01022023,2626.8,2626.7,40.8]
[1724024779412,0.01022023,2626.8,2626.7,42.70325]
[1724024780801,0.01022023,2626.8,2626.7,40.8]
[1724024781709,1.9034,2626.5,2626.4,0.00481401]
[1724024782107,1.9034,2626.5,2626.4,40.80481401]
[1724024782108,5.1112,2626.5,2626.4,40.80481401]
[1724024782606,3.2078,2626.5,2626.4,40.80481401]
[1724024782912,0.8484,2626.6,2626.4,40.80481401]
[1724024784221,0.01022023,2626.8,2626.4,44.61201401]
[1724024784508,0.01022023,2626.8,2626.7,1.90325]
[1724024785807,0.01022023,2626.8,2626.7,5.71045]
[1724024786011,1.90331,2626.7,2626.4,40.80481401]
[1724024786216,1.90337,2626.6,2626.4,41.23001401]
[1724024786401,2.3303,2626.5,2626.4,40.80481401]
[1724024786609,2.7323,2626.5,2626.4,40.80481401]
[1724024786909,0.8289,2626.5,2626.4,40.80481401]
[1724024787412,2.7323,2626.5,2626.4,40.80481401]
[1724024787905,0.8289,2626.5,2626.4,40.80481401]
[1724024788607,0.8289,2626.5,2626.4,42.70828401]
[1724024789224,0.01022023,2626.8,2626.7,1.90325]
[1724024789711,0.01022023,2626.8,2626.7,5.71045]
[1724024789913,0.01022023,2626.8,2626.7,10.71045]
[1724024790104,0.01022023,2626.8,2626.7,55.57538923]
[1724024790704,0.01022023,2626.8,2626.7,50.57538923]
[1724024792503,0.01022023,2626.8,2626.7,44.86493923]
[1724024792715,0.01022023,2626.8,2626.7,40.8]
[1724024792716,1.91340023,2626.8,2626.7,40.8]
[1724024792908,1.90337,2626.6,2626.4,0.00481401]
[1724024793204,3.81742023,2626.8,2626.4,0.00481401]
[1724024793205,0.825,2626.7,2626.4,0.00481401]
[1724024793420,0.825,2626.7,2626.5,1.90337]
[1724024793717,0.01022023,2626.8,2626.6,1.90333]
[1724024794009,0.01022023,2626.8,2626.5,0.4122]
[1724024794010,1.90329,2626.7,2626.5,0.4122]
[1724024794207,0.01022023,2626.8,2626.5,0.4122]
[1724024794406,1.91343023,2626.8,2626.5,0.4122]
[1724024794714,0.01022023,2626.8,2626.6,1.90333]
[1724024795417,0.01022023,2626.8,2626.7,1.90325]
[1724024795608,0.01022023,2626.8,2626.6,1.90328]
[1724024796006,0.01022023,2626.8,2626.7,1.90325]
[1724024796213,0.01022023,2626.8,2626.6,1.90333]
[1724024796413,0.01022023,2626.8,2626.7,1.90325]
[1724024796617,0.01022023,2626.8,2626.7,9.92152704]
[1724024796824,0.01022023,2626.8,2626.7,5.71045]
[1724024797005,0.01022023,2626.8,2626.7,9.9325535]
[1724024799523,0.01022023,2626.8,2626.7,6.1253535]
[1724024800009,0.01022023,2626.8,2626.7,9.9325535]
[1724024800209,0.01022023,2626.8,2626.7,6.1253535]
[1724024800410,0.01022023,2626.8,2626.7,4.2221035]
[1724024800626,0.01022023,2626.8,2626.5,0.4122]
[1724024800807,0.01022023,2626.8,2626.7,1.90325]
[1724024802119,0.01022023,2626.8,2626.7,5.71045]
[1724024807020,0.01022023,2626.8,2626.7,7.6137]
[1724024807320,0.97923855,2627.3,2627.2,1.90289]
[1724024807527,0.97923855,2627.7,2627.4,1.90275]
[1724024807730,0.97923855,2627.8,2627.7,1.90253]
[1724024807917,1.37903855,2627.8,2627.7,42.70253]
[1724024808120,1.37903855,2627.8,2627.7,40.8]
[1724024808420,1.38178378,2627.8,2627.7,40.8]
[1724024808627,1.38178378,2627.8,2627.7,42.70253]
[1724024808822,7.08984378,2627.8,2627.7,40.8]
[1724024809130,1.90282,2627.4,2627.1,5.11073]
[1724024809323,1.90282,2627.4,2626.7,1.90323]
[1724024809324,2.88229786,2627.2,2626.7,1.90323]
[1724024809521,1.90322,2626.8,2626.6,0.4126]
[1724024809721,0.8206,2626.7,2626.6,0.4126]
[1724024809929,0.8206,2626.7,2626.6,6.38952782]
[1724024810117,0.97940786,2626.9,2626.8,1.90318]
[1724024810320,3.30328786,2627.0,2626.7,1.90322]
[1724024810522,0.4055,2626.8,2626.7,1.90322]
[1724024811030,1.40020786,2627.0,2626.9,1.90311]
[1724024811327,1.40020786,2627.0,2626.8,1.90314]
[1724024811736,1.40020786,2627.0,2626.9,1.90311]
[1724024811918,0.4208,2627.0,2626.9,1.90311]
[1724024812925,1.38490786,2627.2,2626.9,7.0142]
[1724024813120,0.4055,2627.2,2627.1,1.90296]
[1724024815517,1.39220786,2627.4,2627.3,1.90282]
[1724024815719,1.78560786,2627.4,2627.3,1.90282]
[1724024816115,0.8062,2627.4,2627.3,5.11062]
[1724024817333,0.97940786,2627.7,2627.6,1.9026]
[1724024817625,0.97940786,2627.7,2627.3,7.0142]
[1724024817626,1.79385309,2627.8,2627.7,1.90253]
[1724024818622,3.69631309,2627.8,2627.6,1.90257]
[1724024819130,3.69631309,2627.8,2627.5,1.90265]
[1724024819131,2.88193786,2627.7,2627.5,1.90265]
[1724024819733,2.88193786,2627.7,2627.6,40.8]
[1724024820929,0.97940786,2627.7,2627.6,40.8]
[1724024821129,6.68753786,2627.7,2627.6,40.8]
[1724024821429,1.90267,2627.5,2627.3,5.11058]
[1724024821632,2.32335,2627.4,2627.3,5.11058]
[1724024821927,2.32335,2627.4,2627.3,45.91062]
[1724024821928,0.4206,2627.4,2627.3,45.91062]
[1724024822433,2.32335,2627.4,2627.3,44.0078]
[1724024822728,0.4206,2627.4,2627.3,45.91062]
[1724024823126,2.32335,2627.4,2627.3,44.0078]
[1724024823528,3.30242498,2627.4,2627.3,44.0078]
[1724024824843,1.90311,2626.9,2626.6,3.2078]
[1724024825026,1.90311,2626.9,2626.5,0.3959]
[1724024825027,0.4211,2626.8,2626.5,0.3959]
[1724024825226,0.4211,2626.8,2626.7,1.90325]
[1724024825227,0.8293,2626.8,2626.7,1.90325]
[1724024825424,0.8293,2626.8,2626.6,1.9033]
[1724024825425,2.73251,2626.8,2626.6,1.9033]
[1724024825625,1.90327,2626.7,2626.5,0.3959]
[1724024825831,1.90327,2626.7,2626.6,40.8]
[1724024826530,4.78624659,2626.7,2626.4,1.90826401]
[1724024826729,1.9034,2626.5,2626.4,0.00481401]
[1724024826927,1.90336,2626.6,2626.4,40.80481401]
[1724024827130,1.90336,2626.6,2626.4,42.70825401]
[1724024827334,0.97904659,2626.7,2626.4,40.80481401]
[1724024827335,1.9034,2626.5,2626.4,40.80481401]
[1724024827630,2.3072,2626.5,2626.4,40.80481401]
[1724024828726,3.28624659,2626.5,2626.4,40.80481401]
[1724024828939,2.3072,2626.5,2626.4,40.80481401]
[1724024830135,8.0178,2626.5,2626.4,40.80481401]
[1724024830327,1.90354,2626.3,2626.2,0.00570559]
[1724024830847,1.90354,2626.3,2626.2,40.80570559]
[1724024830848,5.71154,2626.3,2626.2,40.80570559]
[1724024831020,5.71154,2626.3,2626.2,0.00570559]
[1724024831222,6.51234,2626.3,2626.2,0.0089913]
[1724024831427,2.70434,2626.3,2626.2,0.0089913]
[1724024832920,4.98736406,2626.3,2625.6,5.5078]
[1724024833124,4.98736406,2626.3,2626.0,1.90376]
[1724024833337,2.70439,2626.3,2626.1,1.90366]
[1724024833635,1.90373,2626.1,2625.9,1.90381]
[1724024833834,1.90373,2626.1,2625.9,1.90691333]
[1724024834336,4.98736406,2626.3,2625.9,0.00310333]
[1724024834537,1.90369,2626.1,2625.9,1.90689333]
[1724024835232,1.90367,2626.2,2626.0,1.90376]
[1724024835439,0.8008,2626.3,2625.9,0.00310333]
[1724024835628,1.90367,2626.2,2625.9,0.00310333]
[1724024835831,1.90367,2626.2,2626.0,1.90369]
[1724024836230,1.90367,2626.2,2626.1,1.90369]
[1724024836835,0.8008,2626.3,2626.2,1.90362]
[1724024837038,1.87861738,2626.5,2626.4,1.90347]
[1724024837039,0.00570559,2626.5,2626.4,1.90347]
[1724024837240,5.71632559,2626.5,2626.3,1.90352]
[1724024837535,0.00570559,2626.5,2626.4,42.70347]
[1724024837927,0.00570559,2626.5,2626.4,50.91243584]
[1724024838130,0.00570559,2626.5,2626.4,46.92787]
[1724024838844,2.88165406,2627.3,2627.1,1.90296]
[1724024839033,6.08936406,2627.4,2627.2,1.90289]
[1724024839230,1.90282,2627.3,2627.2,1.90289]
[1724024839435,1.90282,2627.3,2627.1,1.9029]
[1724024839729,1.90286,2627.3,2627.1,1.9029]
[1724024840140,1.90296,2627.1,2627.0,0.4172]
[1724024840343,0.97876406,2627.3,2627.0,2.32024]
[1724024840642,1.90292,2627.2,2627.1,1.90296]
[1724024840839,1.90292,2627.2,2627.0,6.63828151]
[1724024841141,4.78516406,2627.2,2626.9,0.00570559]
[1724024841341,0.97876406,2627.1,2626.9,0.00570559]
[1724024841544,1.90304,2627.0,2626.9,0.00570559]
[1724024842145,6.94714,2627.0,2626.9,0.00570559]
[1724024842843,1.2377,2627.0,2626.9,1.90881559]
[1724024843341,1.2377,2627.0,2626.9,0.00570559]
[1724024843849,1.90293,2627.2,2627.0,1.90298]
[1724024844543,0.97876406,2627.3,2626.9,0.00570559]
[1724024844544,0.97876406,2627.3,2627.2,1.90289]
[1724024844743,2.88162406,2627.3,2627.1,1.90295]
[1724024844949,2.88162406,2627.3,2627.2,0.4166]
[1724024845145,2.88162406,2627.3,2626.9,0.00570559]
[1724024845146,0.97876406,2627.3,2626.9,0.00570559]
[1724024845336,1.90304,2627.0,2626.9,0.00570559]
[1724024845542,1.90301,2627.1,2626.9,1.90878559]
[1724024845843,0.97876406,2627.3,2626.9,1.90878559]
[1724024846242,1.90302,2627.1,2627.0,1.90304]
[1724024846559,1.90302,2627.1,2626.9,1.90879559]
[1724024847146,1.90304,2627.0,2626.9,0.00570559]
[1724024847361,5.70944,2627.0,2626.9,0.00570559]
[1724024848439,6.14114,2627.0,2626.9,0.00570559]
[1724024849845,8.04418,2627.0,2626.9,0.00570559]
[1724024850048,8.04418,2627.0,2626.4,40.8]
[1724024850049,1.9034,2626.5,2626.4,40.8]
[1724024850738,2.3401,2626.5,2626.4,40.8]
[1724024851446,0.97794378,2626.7,2626.4,52.815]
[1724024851748,1.84924378,2627.4,2627.0,1.90299]
[1724024851950,1.84924378,2627.4,2626.7,3.2078]
[1724024852248,1.90299,2627.1,2626.7,1.9032]
[1724024852453,1.90304,2627.0,2626.6,0.4401]
[1724024852639,1.903,2627.1,2626.8,1.90315]
[1724024852841,2.77405,2627.4,2626.9,5.5078]
[1724024852842,0.97794378,2627.4,2626.9,5.5078]
[1724024853038,0.00570559,2627.5,2627.2,1.90286]
[1724024853241,0.00570559,2627.5,2627.0,0.426]
[1724024853449,2.88633937,2627.5,2627.1,42.70293]
[1724024853754,0.98364937,2627.5,2627.2,1.90289]
[1724024853948,0.98364937,2627.5,2627.1,42.70292]
[1724024853949,0.00570559,2627.5,2627.1,42.70292]
[1724024854250,0.98364937,2627.5,2627.1,40.8]
[1724024854458,0.98364937,2627.5,2626.6,2.34342]
[1724024854459,1.90309,2627.0,2626.6,2.34342]
[1724024854966,1.90318,2626.8,2626.7,40.8]
[1724024855245,3.31139378,2626.9,2626.6,0.4401]
[1724024855445,1.90323,2626.8,2626.6,0.4401]
[1724024855647,2.31943,2626.8,2626.7,40.8]
[1724024855844,0.4162,2626.8,2626.7,40.8]
[1724024856749,0.4303,2626.9,2626.7,40.8]
[1724024857743,2.33341,2626.9,2626.7,40.8]
[1724024858042,2.33342,2626.9,2626.7,40.8]
[1724024858348,0.4303,2626.9,2626.7,42.70325]
[1724024858554,0.4303,2626.9,2626.7,40.8]
[1724024858848,1.38904378,2627.0,2626.7,42.70322]
[1724024859053,0.97794378,2627.1,2626.9,1.90311]
[1724024859244,0.97794378,2627.1,2626.7,40.8]
[1724024859445,3.71984378,2627.2,2626.9,1.90308]
[1724024859742,0.97794378,2627.1,2626.9,1.90311]
[1724024859948,1.90305,2627.0,2626.7,42.70325]
[1724024860247,2.88099378,2627.0,2626.7,40.8]
[1724024860650,1.90312,2626.9,2626.7,40.8]
[1724024860942,0.4039,2626.8,2626.7,40.8]
[1724024861141,2.30708,2626.8,2626.7,40.8]
[1724024861341,1.9034,2626.5,2626.1,0.4165]
[1724024861646,1.90347,2626.4,2626.2,1.90931559]
[1724024861854,1.90345,2626.5,2626.3,40.8]
[1724024862258,1.90345,2626.5,2626.3,42.70354]
[1724024862471,1.90337,2626.6,2626.3,42.70354]
[1724024862655,3.73917915,2626.7,2626.3,40.8]
[1724024862852,0.4141,2626.7,2626.5,1.90337]
[1724024863053,0.4039,2626.8,2626.6,0.4096]
[1724024863254,0.97876915,2626.8,2626.6,0.4096]
[1724024863448,1.90312,2626.9,2626.7,1.90323]
[1724024863659,2.88188915,2626.9,2626.7,1.90323]
[1724024863859,0.97876915,2626.9,2626.7,1.90323]
[1724024864060,0.97876915,2626.9,2626.8,1.90318]
[1724024864353,1.38616915,2627.1,2626.9,1.90311]
[1724024864565,0.97876915,2627.0,2626.8,1.90313]
[1724024864861,0.00570559,2627.5,2627.4,1.90275]
[1724024865066,0.00570559,2627.5,2627.4,9.33255]
[1724024865354,0.00570559,2627.5,2627.4,20.12353009]
[1724024865556,0.00570559,2627.5,2627.4,18.22078009]
[1724024865768,0.00570559,2627.5,2627.4,20.12353009]
[1724024865956,0.00274523,2627.8,2627.4,18.22078009]
[1724024866263,0.00274523,2627.8,2627.7,7.01286]
[1724024866463,0.97962274,2628.3,2628.2,1.90217]
[1724024866653,0.97962274,2628.5,2628.3,1.9021]
[1724024866853,0.97962274,2628.6,2628.4,40.8]
[1724024867249,0.97962274,2628.6,2628.5,1.90195]
[1724024867554,0.0039132,2628.6,2628.5,0.00422531]
[1724024867761,5.7097932,2628.6,2628.5,0.00422531]
[1724024867954,7.17878741,2628.6,2628.5,0.00422531]
[1724024868348,3.37478741,2628.6,2628.5,0.00422531]
[1724024868550,7.17878741,2628.6,2628.5,0.00422531]
[1724024868757,5.7097932,2628.6,2628.5,0.00422531]
[1724024869159,12.17878741,2628.6,2628.5,0.00422531]
[1724024869461,10.7097932,2628.6,2628.5,0.00422531]
[1724024869658,5.7097932,2628.6,2628.5,0.00422531]
[1724024869855,10.7097932,2628.6,2628.5,0.00422531]
[1724024870058,1.90217,2628.2,2628.1,0.00570559]
[1724024870267,2.87984406,2628.2,2628.1,0.00570559]
[1724024870557,11.68464406,2628.2,2628.1,0.00570559]
[1724024870776,7.50774406,2628.2,2628.1,0.00570559]
[1724024870966,4.6279,2628.2,2628.1,0.01025011]
[1724024871154,0.8231,2628.2,2628.1,0.01025011]
[1724024871464,2.88350726,2628.6,2628.2,1.90211]
[1724024871658,1.9058332,2628.6,2628.2,2.31801]
[1724024872661,1.9058332,2628.6,2627.1,1.90293]
[1724024872662,1.90217,2628.2,2627.1,1.90293]
[1724024872859,1.90217,2628.2,2627.3,1.90279]
[1724024872860,0.97652687,2627.9,2627.3,1.90279]
[1724024873158,0.97652687,2627.9,2627.2,0.4159]
[1724024873159,3.2078,2627.7,2627.2,0.4159]
[1724024873351,1.4647903,2627.9,2627.2,0.4159]
[1724024873352,0.97652687,2627.9,2627.2,0.4159]
[1724024873551,4.4653,2628.1,2627.4,4.13632901]
[1724024873753,4.4653,2628.1,2627.4,0.00450155]
[1724024873959,1.90249,2627.8,2627.5,0.00570559]
[1724024874258,1.90242,2627.9,2627.5,1.90834559]
[1724024874456,1.90242,2627.9,2627.5,0.00570559]
[1724024874660,5.44182687,2628.1,2627.6,1.90256]
[1724024874867,1.90236,2628.0,2627.7,1.90251]
[1724024875050,4.0607,2628.1,2627.5,0.00570559]
[1724024875455,4.0607,2628.1,2627.9,1.90234]
[1724024875659,4.0607,2628.1,2628.0,0.4281]
[1724024875861,5.96294,2628.1,2628.0,0.4281]
[1724024877264,3.2078,2628.1,2628.0,0.4281]
[1724024877764,2.75923,2628.3,2628.0,2.33041]
[1724024878357,2.75923,2628.3,2628.0,2.33038]
[1724024878557,2.75923,2628.3,2628.1,1.90223]
[1724024878785,4.6765035,2628.6,2628.5,1.90195]
[1724024878786,3.2117132,2628.6,2628.5,1.90195]
[1724024878969,0.00570559,2628.7,2628.6,1.90188]
[1724024879155,0.00570559,2628.7,2628.6,46.93228]
[1724024880061,0.00921117,2628.7,2628.6,46.93228]
[1724024887361,3.2078,2629.2,2628.6,54.28137501]
[1724024887564,3.2078,2629.2,2628.6,45.47737501]
[1724024887769,3.2078,2629.2,2629.0,1.90156]
[1724024888169,3.2078,2629.2,2629.1,1.90152]
[1724024888364,4.4961,2629.5,2629.3,1.90136]
[1724024888568,0.00570559,2629.4,2629.3,1.9042229]
[1724024889080,0.00570559,2629.4,2629.3,1.9042329]
[1724024890777,0.00388704,2629.5,2629.4,1.9013]
[1724024891070,0.00388704,2629.5,2629.4,40.8]
[1724024891266,0.00388704,2629.5,2629.4,42.7013]
[1724024894468,0.00388704,2629.5,2629.4,46.5045]
[1724024894873,0.00570559,2629.7,2629.6,1.90116]
[1724024895374,0.00570559,2629.7,2629.6,5.70356]
[1724024895970,0.00994985,2629.7,2629.6,5.70356]
[1724024896372,0.00994985,2629.7,2629.6,46.50356]
[1724024897361,0.00994985,2629.7,2629.6,42.70116]
[1724024897765,0.00994985,2629.7,2629.6,50.6138166]
[1724024898580,0.00994985,2629.7,2629.3,0.0028629]
[1724024898581,1.9013,2629.4,2629.3,0.0028629]
[1724024898788,5.1091,2629.4,2629.3,0.0028629]
[1724024899670,3.2078,2629.4,2629.3,0.0028629]
[1724024899972,3.2078,2629.4,2629.3,5.7074329]
[1724024900173,8.9123,2629.4,2629.3,0.0028629]
[1724024902177,3.2078,2629.4,2629.3,0.0028629]
[1724024902568,4.2469,2629.4,2629.3,0.0028629]